[Event "*** SCC Grand Prix: Titled Tuesday Blitz"]
[Site "Chess.com"]
[Date "2020.06.02"]
[Round "9"]
[White "Machidon"]
[Black "CroissantNeuf"]
[Result "1-0"]
[WhiteElo "2511"]
[BlackElo "2384"]
[TimeControl "180+1"]
[EndTime "11:48:12 PDT"]
[Termination "Machidon won on time"]

1. d4 {[%clk 0:03:00]} 1... Nf6 {[%clk 0:02:57.5]} 2. c4 {[%clk 0:02:59.9]} 2...
e6 {[%clk 0:02:57.4]} 3. Nc3 {[%clk 0:02:59.7]} 3... c5 {[%clk 0:02:58]} 4. d5
{[%clk 0:02:59.1]} 4... exd5 {[%clk 0:02:58.6]} 5. cxd5 {[%clk 0:03:00]} 5... d6
{[%clk 0:02:59.2]} 6. e4 {[%clk 0:03:00.6]} 6... g6 {[%clk 0:02:59.8]} 7. Nf3
{[%clk 0:03:00.5]} 7... Bg7 {[%clk 0:03:00.1]} 8. Be2 {[%clk 0:03:01.2]} 8...
O-O {[%clk 0:03:00.5]} 9. O-O {[%clk 0:03:01.9]} 9... a6 {[%clk 0:02:59.6]} 10.
a4 {[%clk 0:03:01.9]} 10... Bg4 {[%clk 0:03:00.1]} 11. Bf4 {[%clk 0:03:00.7]}
11... Bxf3 {[%clk 0:02:52.5]} 12. Bxf3 {[%clk 0:03:01.2]} 12... Qe7 {[%clk
0:02:52]} 13. Re1 {[%clk 0:02:54.9]} 13... Nbd7 {[%clk 0:02:51.4]} 14. h3 {[%clk
0:02:48.5]} 14... Rab8 {[%clk 0:02:49.7]} 15. a5 {[%clk 0:02:48.1]} 15... b5
{[%clk 0:02:41.7]} 16. axb6 {[%clk 0:02:48]} 16... Rxb6 {[%clk 0:02:41.9]} 17.
Ra2 {[%clk 0:02:46.3]} 17... Rfb8 {[%clk 0:02:38.2]} 18. Qc2 {[%clk 0:02:45.1]}
18... Ne5 {[%clk 0:02:33.3]} 19. Be2 {[%clk 0:02:44.8]} 19... a5 {[%clk
0:02:18.9]} 20. Rea1 {[%clk 0:02:39.2]} 20... c4 {[%clk 0:01:58.5]} 21. Bc1
{[%clk 0:02:31.1]} 21... Nfd7 {[%clk 0:01:30.9]} 22. Rxa5 {[%clk 0:02:04.8]}
22... Nc5 {[%clk 0:01:30.5]} 23. Ra8 {[%clk 0:01:42.9]} 23... Ned3 {[%clk
0:01:17.7]} 24. R1a7 {[%clk 0:01:15.9]} 24... Qh4 {[%clk 0:01:04.8]} 25. Bf3
{[%clk 0:01:06.4]} 25... Bd4 {[%clk 0:01:01.1]} 26. Nd1 {[%clk 0:01:01.3]} 26...
Nxe4 {[%clk 0:00:26]} 27. Bxe4 {[%clk 0:00:23.1]} 27... Qxe4 {[%clk 0:00:24.3]}
28. Be3 {[%clk 0:00:23]} 28... Bxe3 {[%clk 0:00:17]} 29. Nxe3 {[%clk 0:00:21.9]}
29... Rxb2 {[%clk 0:00:16.5]} 30. Qxc4 {[%clk 0:00:17.2]} 30... Rb1+ {[%clk
0:00:12.5]} 31. Kh2 {[%clk 0:00:16.9]} 31... Qxc4 {[%clk 0:00:12.4]} 32. Nxc4
{[%clk 0:00:16.6]} 32... Nxf2 {[%clk 0:00:13.3]} 33. Nxd6 {[%clk 0:00:16.7]}
33... Rxa8 {[%clk 0:00:11.7]} 34. Rxa8+ {[%clk 0:00:16.8]} 34... Kg7 {[%clk
0:00:12.6]} 35. Ne8+ {[%clk 0:00:17.1]} 35... Kh6 {[%clk 0:00:12.2]} 36. Ra7
{[%clk 0:00:16.5]} 36... Rd1 {[%clk 0:00:11]} 37. Rxf7 {[%clk 0:00:16.3]} 37...
Ne4 {[%clk 0:00:10.2]} 38. Re7 {[%clk 0:00:13.5]} 38... Nf2 {[%clk 0:00:07.8]}
39. Re2 {[%clk 0:00:11.7]} 39... Nd3 {[%clk 0:00:07.1]} 40. d6 {[%clk
0:00:11.6]} 40... Nc5 {[%clk 0:00:07.5]} 41. Re7 {[%clk 0:00:11.3]} 41... Kg5
{[%clk 0:00:06.6]} 42. Rxh7 {[%clk 0:00:11]} 42... Kf5 {[%clk 0:00:06.3]} 43.
Re7 {[%clk 0:00:11.2]} 43... Rd2 {[%clk 0:00:04.8]} 44. Kg3 {[%clk 0:00:11.4]}
44... Rd3+ {[%clk 0:00:04.1]} 45. Kh4 {[%clk 0:00:11.9]} 45... g5+ {[%clk
0:00:04.4]} 46. Kh5 {[%clk 0:00:12.2]} 46... Rd4 {[%clk 0:00:03.8]} 47. Ng7+
{[%clk 0:00:12.3]} 47... Kf6 {[%clk 0:00:03.9]} 48. g4 {[%clk 0:00:12.2]} 48...
Ne4 {[%clk 0:00:02.7]} 49. Kh6 {[%clk 0:00:11.5]} 49... Ng3 {[%clk 0:00:02.6]}
50. Nh5+ {[%clk 0:00:11.7]} 1-0

[Event "*** SCC Grand Prix: Titled Tuesday Blitz"]
[Site "Chess.com"]
[Date "2020.06.02"]
[Round "9"]
[White "Efremov_Vlad"]
[Black "1f3_2g41-0"]
[Result "1/2-1/2"]
[WhiteElo "2166"]
[BlackElo "2230"]
[TimeControl "180+1"]
[EndTime "11:48:12 PDT"]
[Termination "Game drawn by repetition"]

1. c4 {[%clk 0:03:00.9]} 1... Nf6 {[%clk 0:02:59]} 2. d4 {[%clk 0:03:01]} 2...
g6 {[%clk 0:02:55.7]} 3. Nf3 {[%clk 0:03:01.1]} 3... Bg7 {[%clk 0:02:55.5]} 4.
g3 {[%clk 0:03:01.7]} 4... O-O {[%clk 0:02:55.1]} 5. Bg2 {[%clk 0:03:02.2]} 5...
e6 {[%clk 0:02:55.8]} 6. O-O {[%clk 0:03:00.7]} 6... d5 {[%clk 0:02:56.4]} 7.
Nc3 {[%clk 0:02:52.7]} 7... Nc6 {[%clk 0:02:53.8]} 8. b3 {[%clk 0:02:24.2]} 8...
a5 {[%clk 0:02:50.9]} 9. Bb2 {[%clk 0:02:24.1]} 9... b6 {[%clk 0:02:49.1]} 10.
Rc1 {[%clk 0:02:22]} 10... Bb7 {[%clk 0:02:46.2]} 11. Ne5 {[%clk 0:01:55.5]}
11... Ne7 {[%clk 0:02:25.9]} 12. Re1 {[%clk 0:01:51.1]} 12... Ne4 {[%clk
0:01:59.1]} 13. Nxe4 {[%clk 0:01:31]} 13... dxe4 {[%clk 0:01:48.6]} 14. Qc2
{[%clk 0:01:30.6]} 14... f5 {[%clk 0:01:37.7]} 15. f3 {[%clk 0:01:19.1]} 15...
c5 {[%clk 0:01:18.1]} 16. dxc5 {[%clk 0:01:09.8]} 16... Qc7 {[%clk 0:01:08.3]}
17. c6 {[%clk 0:00:44.1]} 17... Nxc6 {[%clk 0:00:49.5]} 18. Nxc6 {[%clk
0:00:43.5]} 18... Bxb2 {[%clk 0:00:40.1]} 19. Qxb2 {[%clk 0:00:42.5]} 19... exf3
{[%clk 0:00:23.5]} 20. exf3 {[%clk 0:00:41.9]} 20... Qxc6 {[%clk 0:00:22.6]} 21.
f4 {[%clk 0:00:40.9]} 21... Qc5+ {[%clk 0:00:22.3]} 22. Qf2 {[%clk 0:00:40]}
22... Qxf2+ {[%clk 0:00:17.8]} 23. Kxf2 {[%clk 0:00:40.2]} 23... Bxg2 {[%clk
0:00:18.6]} 24. Kxg2 {[%clk 0:00:40.6]} 24... Kf7 {[%clk 0:00:19.4]} 25. Re5
{[%clk 0:00:38]} 25... Rfd8 {[%clk 0:00:19.2]} 26. Rce1 {[%clk 0:00:34.7]} 26...
Rd2+ {[%clk 0:00:19.3]} 27. Kg1 {[%clk 0:00:29.3]} 27... Re8 {[%clk 0:00:17.1]}
28. Rb5 {[%clk 0:00:29.1]} 28... Rxa2 {[%clk 0:00:15.8]} 29. Rxb6 {[%clk
0:00:28.7]} 29... Rb2 {[%clk 0:00:14.6]} 30. Rb5 {[%clk 0:00:28]} 30... Rd8
{[%clk 0:00:12.5]} 31. Rxa5 {[%clk 0:00:24.3]} 31... Rdd2 {[%clk 0:00:12.6]} 32.
Ra7+ {[%clk 0:00:21.8]} 32... Kf6 {[%clk 0:00:13]} 33. Rxh7 {[%clk 0:00:21]}
33... Rg2+ {[%clk 0:00:12.8]} 34. Kh1 {[%clk 0:00:21]} 34... Rgd2 {[%clk
0:00:10.1]} 35. Rc1 {[%clk 0:00:20.9]} 35... Rxb3 {[%clk 0:00:10.1]} 36. c5
{[%clk 0:00:21.2]} 36... Rb8 {[%clk 0:00:06.5]} 37. c6 {[%clk 0:00:21.4]} 37...
Rc8 {[%clk 0:00:07]} 38. c7 {[%clk 0:00:20.1]} 38... Ra2 {[%clk 0:00:06.9]} 39.
Rd7 {[%clk 0:00:19.6]} 39... Ra7 {[%clk 0:00:06.3]} 40. Rc6 {[%clk 0:00:15.7]}
40... Rb7 {[%clk 0:00:04.9]} 41. Rdd6 {[%clk 0:00:15.6]} 41... Rbxc7 {[%clk
0:00:03.9]} 42. Rxe6+ {[%clk 0:00:14.1]} 42... Kf7 {[%clk 0:00:04.2]} 43. Rxc7+
{[%clk 0:00:12.9]} 43... Rxc7 {[%clk 0:00:04.4]} 44. Re2 {[%clk 0:00:13]} 44...
Kf6 {[%clk 0:00:04.5]} 45. Kg2 {[%clk 0:00:13.3]} 45... Rc1 {[%clk 0:00:05]} 46.
h3 {[%clk 0:00:13]} 46... g5 {[%clk 0:00:05.4]} 47. fxg5+ {[%clk 0:00:12.6]}
47... Kxg5 {[%clk 0:00:06.3]} 48. h4+ {[%clk 0:00:11.8]} 48... Kg4 {[%clk
0:00:06.8]} 49. Ra2 {[%clk 0:00:11.9]} 49... Rc3 {[%clk 0:00:07.2]} 50. Ra4+
{[%clk 0:00:12]} 50... Kh5 {[%clk 0:00:07.8]} 51. Kh3 {[%clk 0:00:12.3]} 51...
Rf3 {[%clk 0:00:07.4]} 52. Rf4 {[%clk 0:00:11.7]} 52... Rxf4 {[%clk 0:00:06.4]}
53. gxf4 {[%clk 0:00:12]} 53... Kg6 {[%clk 0:00:06.9]} 54. Kg3 {[%clk 0:00:08]}
54... Kh5 {[%clk 0:00:07.5]} 55. Kh3 {[%clk 0:00:07.1]} 55... Kg6 {[%clk
0:00:08.1]} 56. Kg3 {[%clk 0:00:07.4]} 56... Kh6 {[%clk 0:00:08.3]} 57. Kf3
{[%clk 0:00:06.2]} 57... Kh5 {[%clk 0:00:08.7]} 58. Kg3 {[%clk 0:00:03.6]} 58...
Kh6 {[%clk 0:00:08.9]} 59. Kh3 {[%clk 0:00:03.9]} 59... Kg6 {[%clk 0:00:04.9]}
1/2-1/2

[Event "*** SCC Grand Prix: Titled Tuesday Blitz"]
[Site "Chess.com"]
[Date "2020.06.02"]
[Round "9"]
[White "Quaternitychess"]
[Black "AliKa2810"]
[Result "1-0"]
[WhiteElo "2805"]
[BlackElo "2578"]
[TimeControl "180+1"]
[EndTime "11:48:13 PDT"]
[Termination "Quaternitychess won on time"]

1. e4 {[%clk 0:03:00.9]} 1... e5 {[%clk 0:02:59.7]} 2. Nf3 {[%clk 0:02:56.1]}
2... Nf6 {[%clk 0:03:00]} 3. Nc3 {[%clk 0:02:55.5]} 3... Nc6 {[%clk 0:02:59.4]}
4. h3 {[%clk 0:02:56]} 4... d5 {[%clk 0:02:57.8]} 5. exd5 {[%clk 0:02:56.2]}
5... Nxd5 {[%clk 0:02:58.7]} 6. Bb5 {[%clk 0:02:57]} 6... Nxc3 {[%clk
0:02:55.2]} 7. bxc3 {[%clk 0:02:57.9]} 7... Bd6 {[%clk 0:02:55.5]} 8. O-O {[%clk
0:02:58.4]} 8... O-O {[%clk 0:02:55.3]} 9. Re1 {[%clk 0:02:59.3]} 9... Qf6
{[%clk 0:02:52.3]} 10. d4 {[%clk 0:02:55.7]} 10... exd4 {[%clk 0:02:51.5]} 11.
cxd4 {[%clk 0:02:56.1]} 11... a6 {[%clk 0:02:48.9]} 12. Bd3 {[%clk 0:02:50.7]}
12... Bf5 {[%clk 0:02:48]} 13. Rb1 {[%clk 0:02:24.9]} 13... Rfe8 {[%clk
0:02:12.6]} 14. Bxf5 {[%clk 0:02:06.1]} 14... Qxf5 {[%clk 0:02:11.7]} 15. Rxb7
{[%clk 0:01:55.1]} 15... Rxe1+ {[%clk 0:02:09.4]} 16. Nxe1 {[%clk 0:01:56]}
16... Re8 {[%clk 0:02:09.2]} 17. Nf3 {[%clk 0:01:24.5]} 17... Qe4 {[%clk
0:01:57.7]} 18. Rb3 {[%clk 0:01:20]} 18... Nxd4 {[%clk 0:01:34.6]} 19. Re3
{[%clk 0:01:19.7]} 19... Nxf3+ {[%clk 0:01:34.3]} 20. Qxf3 {[%clk 0:01:19.8]}
20... Qa4 {[%clk 0:01:34.9]} 21. Rxe8+ {[%clk 0:01:11.8]} 21... Qxe8 {[%clk
0:01:35.8]} 22. Be3 {[%clk 0:01:09.6]} 22... h6 {[%clk 0:01:35.6]} 23. g3 {[%clk
0:01:09.5]} 23... Qe6 {[%clk 0:01:35.3]} 24. Qa8+ {[%clk 0:01:08.1]} 24... Kh7
{[%clk 0:01:35.4]} 25. Qxa6 {[%clk 0:01:06.3]} 25... Qxh3 {[%clk 0:01:35.9]} 26.
Qd3+ {[%clk 0:01:04.9]} 26... f5 {[%clk 0:01:28.8]} 27. a4 {[%clk 0:01:03.8]}
27... h5 {[%clk 0:01:20]} 28. Bf4 {[%clk 0:01:00.9]} 28... Bxf4 {[%clk
0:01:15.4]} 29. gxf4 {[%clk 0:01:00.5]} 29... Qg4+ {[%clk 0:01:16]} 30. Kf1
{[%clk 0:00:52.5]} 30... h4 {[%clk 0:01:04.7]} 31. Qe2 {[%clk 0:00:33.6]} 31...
Qxf4 {[%clk 0:00:38.9]} 32. a5 {[%clk 0:00:31.4]} 32... Qa4 {[%clk 0:00:13.8]}
33. Qh5+ {[%clk 0:00:24.5]} 33... Kg8 {[%clk 0:00:13.1]} 34. Qxf5 {[%clk
0:00:24.6]} 34... h3 {[%clk 0:00:09.7]} 35. Kg1 {[%clk 0:00:24.1]} 35... Qc4
{[%clk 0:00:03.3]} 36. Kh2 {[%clk 0:00:21.5]} 36... Qe2 {[%clk 0:00:02.5]} 37.
Kxh3 {[%clk 0:00:18.6]} 37... Qf1+ {[%clk 0:00:02.8]} 38. Kh2 {[%clk 0:00:18.9]}
38... Qe2 {[%clk 0:00:03.2]} 39. Kg2 {[%clk 0:00:19]} 39... Qc4 {[%clk
0:00:02.7]} 40. Kg3 {[%clk 0:00:14.5]} 40... c6 {[%clk 0:00:03]} 41. f3 {[%clk
0:00:13.8]} 41... Qf1 {[%clk 0:00:01.6]} 42. Qe6+ {[%clk 0:00:12.2]} 42... Kf8
{[%clk 0:00:02]} 43. Qd6+ {[%clk 0:00:11.2]} 43... Kf7 {[%clk 0:00:01.8]} 44.
Qc7+ {[%clk 0:00:10.1]} 44... Kf8 {[%clk 0:00:01.6]} 45. Qc8+ {[%clk 0:00:09.5]}
45... Kf7 {[%clk 0:00:02.1]} 46. Qb7+ {[%clk 0:00:09.5]} 46... Kf8 {[%clk
0:00:02.5]} 47. a6 {[%clk 0:00:09.1]} 47... Qe1+ {[%clk 0:00:02.8]} 48. Kf4
{[%clk 0:00:08.7]} 48... Qd2+ {[%clk 0:00:02.9]} 49. Ke4 {[%clk 0:00:08.6]}
49... Qxc2+ {[%clk 0:00:02.9]} 50. Kd4 {[%clk 0:00:08.6]} 50... Qd2+ {[%clk
0:00:02.8]} 51. Kc5 {[%clk 0:00:08.8]} 51... Qc3+ {[%clk 0:00:02.9]} 52. Kb6
{[%clk 0:00:09.1]} 52... Qb3+ {[%clk 0:00:02.6]} 53. Kc7 {[%clk 0:00:09.6]}
53... Qf7+ {[%clk 0:00:02.4]} 54. Kb8 {[%clk 0:00:10]} 54... Qf4+ {[%clk
0:00:02.6]} 55. Qc7 {[%clk 0:00:05.5]} 55... Qb4+ {[%clk 0:00:02.6]} 56. Kc8
{[%clk 0:00:05.1]} 1-0

[Event "*** SCC Grand Prix: Titled Tuesday Blitz"]
[Site "Chess.com"]
[Date "2020.06.02"]
[Round "9"]
[White "Bulldog167"]
[Black "Gyapiking"]
[Result "1-0"]
[WhiteElo "2743"]
[BlackElo "2504"]
[TimeControl "180+1"]
[EndTime "11:48:14 PDT"]
[Termination "Bulldog167 won by resignation"]

1. c4 {[%clk 0:03:00.9]} 1... f5 {[%clk 0:02:57.9]} 2. Nc3 {[%clk 0:03:00.8]}
2... Nf6 {[%clk 0:02:57.9]} 3. d4 {[%clk 0:03:00.8]} 3... d6 {[%clk 0:02:57.2]}
4. e4 {[%clk 0:02:59.6]} 4... fxe4 {[%clk 0:02:55.5]} 5. f3 {[%clk 0:02:58.2]}
5... Bf5 {[%clk 0:02:54.7]} 6. Qc2 {[%clk 0:02:55.3]} 6... Nc6 {[%clk
0:02:53.5]} 7. fxe4 {[%clk 0:02:41.7]} 7... Bg6 {[%clk 0:02:52]} 8. Nf3 {[%clk
0:02:39.3]} 8... e5 {[%clk 0:02:50.9]} 9. d5 {[%clk 0:02:37.2]} 9... Nd4 {[%clk
0:02:50.8]} 10. Qa4+ {[%clk 0:02:28.9]} 10... Nd7 {[%clk 0:02:45.7]} 11. Be3
{[%clk 0:02:21.5]} 11... Nxf3+ {[%clk 0:02:40.6]} 12. gxf3 {[%clk 0:02:22.4]}
12... Be7 {[%clk 0:02:40.7]} 13. Bh3 {[%clk 0:02:22.8]} 13... Bh4+ {[%clk
0:02:31.2]} 14. Ke2 {[%clk 0:02:22.6]} 14... a6 {[%clk 0:02:29.6]} 15. Rhg1
{[%clk 0:02:17.4]} 15... b5 {[%clk 0:02:28.8]} 16. cxb5 {[%clk 0:02:17.5]} 16...
O-O {[%clk 0:02:28.8]} 17. bxa6 {[%clk 0:02:16.4]} 17... Nf6 {[%clk 0:02:27.5]}
18. a7 {[%clk 0:02:14.8]} 18... Bh5 {[%clk 0:02:21]} 19. Raf1 {[%clk 0:02:09.8]}
19... Kh8 {[%clk 0:02:17.1]} 20. Kd3 {[%clk 0:02:07.2]} 20... Be8 {[%clk
0:02:13.2]} 21. Qb4 {[%clk 0:01:55.6]} 21... c5 {[%clk 0:02:08.8]} 22. dxc6
{[%clk 0:01:54.6]} 22... Bxc6 {[%clk 0:02:08.6]} 23. Kc2 {[%clk 0:01:51.7]}
23... d5 {[%clk 0:02:04.5]} 24. Bb6 {[%clk 0:01:37.4]} 24... Qe8 {[%clk
0:01:57]} 25. exd5 {[%clk 0:01:34.3]} 25... Nxd5 {[%clk 0:01:56]} 26. Nxd5
{[%clk 0:01:34.8]} 26... Bxd5 {[%clk 0:01:56.1]} 27. Kb1 {[%clk 0:01:28.5]}
27... Bf6 {[%clk 0:01:51.4]} 28. Rf2 {[%clk 0:01:16.2]} 28... e4 {[%clk
0:01:49.1]} 29. fxe4 {[%clk 0:01:15.8]} 29... Bxe4+ {[%clk 0:01:49]} 30. Ka1
{[%clk 0:01:16]} 30... Qe5 {[%clk 0:01:43.8]} 31. a3 {[%clk 0:01:10.4]} 31...
Bd5 {[%clk 0:01:03.9]} 32. Bg2 {[%clk 0:01:06.1]} 32... Bxg2 {[%clk 0:00:58.9]}
33. Rfxg2 {[%clk 0:01:07]} 33... Rfc8 {[%clk 0:00:51.8]} 34. Re1 {[%clk
0:01:00.4]} 34... Qd5 {[%clk 0:00:46.6]} 35. Rge2 {[%clk 0:00:57.7]} 35... h6
{[%clk 0:00:46.3]} 36. Qe4 {[%clk 0:00:48]} 36... Qb3 {[%clk 0:00:40.4]} 37. Qb4
{[%clk 0:00:42.5]} 37... Qd5 {[%clk 0:00:32.9]} 38. Rd2 {[%clk 0:00:42.1]} 38...
Qf5 {[%clk 0:00:29]} 39. Bd4 {[%clk 0:00:40.5]} 39... Bxd4 {[%clk 0:00:18.6]}
40. Qxd4 {[%clk 0:00:39.8]} 40... Qf7 {[%clk 0:00:17.9]} 41. Rf2 {[%clk
0:00:35.3]} 41... Qb7 {[%clk 0:00:16.3]} 42. Ref1 {[%clk 0:00:31.2]} 42... Rxa7
{[%clk 0:00:16.2]} 43. Rf8+ {[%clk 0:00:31.2]} 43... Rxf8 {[%clk 0:00:15.5]} 44.
Rxf8+ {[%clk 0:00:32.1]} 44... Kh7 {[%clk 0:00:15.5]} 45. Qd3+ {[%clk
0:00:32.6]} 45... g6 {[%clk 0:00:15.4]} 46. Qd4 {[%clk 0:00:28.7]} 46... Qg7
{[%clk 0:00:12.5]} 47. Qxg7+ {[%clk 0:00:25.9]} 47... Kxg7 {[%clk 0:00:12.7]}
48. Rf1 {[%clk 0:00:23.9]} 48... g5 {[%clk 0:00:12]} 49. Ka2 {[%clk 0:00:23.8]}
49... Kg6 {[%clk 0:00:12.3]} 50. b4 {[%clk 0:00:24.4]} 50... g4 {[%clk
0:00:12.2]} 51. Kb3 {[%clk 0:00:24.7]} 51... Kg5 {[%clk 0:00:12.5]} 52. b5
{[%clk 0:00:24.9]} 52... h5 {[%clk 0:00:12.5]} 53. a4 {[%clk 0:00:25.5]} 53...
h4 {[%clk 0:00:11.9]} 54. Kb4 {[%clk 0:00:25.9]} 54... g3 {[%clk 0:00:11.2]} 55.
hxg3 {[%clk 0:00:26.8]} 55... hxg3 {[%clk 0:00:10.8]} 56. b6 {[%clk 0:00:27.1]}
56... Re7 {[%clk 0:00:09.9]} 57. a5 {[%clk 0:00:26.7]} 57... Kg4 {[%clk
0:00:10]} 58. a6 {[%clk 0:00:26.5]} 58... Re6 {[%clk 0:00:09.9]} 59. Kc5 {[%clk
0:00:26]} 59... Re5+ {[%clk 0:00:10.1]} 60. Kd6 {[%clk 0:00:25.5]} 60... Rf5
{[%clk 0:00:08.6]} 61. Ra1 {[%clk 0:00:19.8]} 61... g2 {[%clk 0:00:07.8]} 62.
Rg1 {[%clk 0:00:17.9]} 62... Kg3 {[%clk 0:00:06.2]} 63. a7 {[%clk 0:00:17.9]}
63... Rf6+ {[%clk 0:00:05]} 64. Ke5 {[%clk 0:00:17.1]} 1-0

[Event "*** SCC Grand Prix: Titled Tuesday Blitz"]
[Site "Chess.com"]
[Date "2020.06.02"]
[Round "9"]
[White "StephenDedalus83"]
[Black "Flawless_Fighter"]
[Result "1-0"]
[WhiteElo "2713"]
[BlackElo "2483"]
[TimeControl "180+1"]
[EndTime "11:48:14 PDT"]
[Termination "StephenDedalus83 won by resignation"]

1. e4 {[%clk 0:03:00.9]} 1... c6 {[%clk 0:02:59.4]} 2. d4 {[%clk 0:02:59]} 2...
d5 {[%clk 0:03:00.3]} 3. e5 {[%clk 0:02:59.1]} 3... Bf5 {[%clk 0:02:59.2]} 4. c3
{[%clk 0:02:58.5]} 4... e6 {[%clk 0:02:58.1]} 5. Be3 {[%clk 0:02:58.2]} 5... Nd7
{[%clk 0:02:57]} 6. Nd2 {[%clk 0:02:57.8]} 6... Ne7 {[%clk 0:02:57.2]} 7. f4
{[%clk 0:02:57.1]} 7... h5 {[%clk 0:02:56.2]} 8. Be2 {[%clk 0:02:55.4]} 8... Bg6
{[%clk 0:02:52]} 9. Ngf3 {[%clk 0:02:54.6]} 9... Nf5 {[%clk 0:02:52]} 10. Bf2
{[%clk 0:02:54.5]} 10... c5 {[%clk 0:02:52.6]} 11. O-O {[%clk 0:02:50]} 11...
Be7 {[%clk 0:02:49.9]} 12. g3 {[%clk 0:02:43.7]} 12... c4 {[%clk 0:02:44.5]} 13.
h3 {[%clk 0:02:16.5]} 13... b5 {[%clk 0:02:22.8]} 14. a3 {[%clk 0:02:07.1]}
14... a5 {[%clk 0:02:05.6]} 15. Kg2 {[%clk 0:02:04.4]} 15... b4 {[%clk
0:01:53.6]} 16. axb4 {[%clk 0:02:03.1]} 16... axb4 {[%clk 0:01:54.5]} 17. cxb4
{[%clk 0:02:00.3]} 17... h4 {[%clk 0:01:47.7]} 18. g4 {[%clk 0:01:59.1]} 18...
Ng3 {[%clk 0:01:48.3]} 19. Bxg3 {[%clk 0:01:58.5]} 19... hxg3 {[%clk 0:01:49.2]}
20. Kxg3 {[%clk 0:01:57.2]} 20... Bxb4 {[%clk 0:01:31.8]} 21. h4 {[%clk
0:01:55.1]} 21... Be4 {[%clk 0:01:21.4]} 22. Nxe4 {[%clk 0:01:51.1]} 22... dxe4
{[%clk 0:01:20.1]} 23. Ng5 {[%clk 0:01:51.6]} 23... Rxa1 {[%clk 0:01:16.2]} 24.
Qxa1 {[%clk 0:01:50.5]} 24... Nb6 {[%clk 0:01:05.5]} 25. Rd1 {[%clk 0:01:39]}
25... e3 {[%clk 0:00:59]} 26. Bxc4 {[%clk 0:01:28.7]} 26... Be7 {[%clk
0:00:49.9]} 27. Bb5+ {[%clk 0:01:26.8]} 27... Kf8 {[%clk 0:00:50.6]} 28. Qa6
{[%clk 0:01:09.4]} 28... Nd5 {[%clk 0:00:46.9]} 29. Ra1 {[%clk 0:01:02.7]} 29...
Bxg5 {[%clk 0:00:40.6]} 30. fxg5 {[%clk 0:00:56.8]} 30... g6 {[%clk 0:00:35.4]}
31. Qa8 {[%clk 0:00:52]} 31... Kg7 {[%clk 0:00:35.8]} 32. Qxd8 {[%clk
0:00:51.5]} 32... Rxd8 {[%clk 0:00:36.7]} 33. Kf3 {[%clk 0:00:38.4]} 33... Rb8
{[%clk 0:00:36]} 34. Ra5 {[%clk 0:00:34.2]} 34... Nc7 {[%clk 0:00:31.5]} 35. Bc4
{[%clk 0:00:33.9]} 35... Rxb2 {[%clk 0:00:28.1]} 36. Ra7 {[%clk 0:00:33]} 36...
Nd5 {[%clk 0:00:25.7]} 37. Bxd5 {[%clk 0:00:31.6]} 37... e2 {[%clk 0:00:25]} 38.
Kf2 {[%clk 0:00:30.6]} 38... exd5 {[%clk 0:00:24.8]} 39. e6 {[%clk 0:00:30.6]}
39... Rd2 {[%clk 0:00:19]} 40. Rxf7+ {[%clk 0:00:29.8]} 40... Kg8 {[%clk
0:00:19.6]} 41. Rf6 {[%clk 0:00:29.7]} 41... Rxd4 {[%clk 0:00:16.6]} 42. Kxe2
{[%clk 0:00:26.1]} 42... Rxg4 {[%clk 0:00:15.1]} 43. Kf3 {[%clk 0:00:25]} 43...
Re4 {[%clk 0:00:14.1]} 44. Rxg6+ {[%clk 0:00:24.2]} 44... Kf8 {[%clk 0:00:13.8]}
45. h5 {[%clk 0:00:24.2]} 45... Rh4 {[%clk 0:00:12.2]} 46. h6 {[%clk 0:00:23.7]}
46... Ke7 {[%clk 0:00:12.7]} 47. Ke3 {[%clk 0:00:22]} 47... Re4+ {[%clk
0:00:10.6]} 48. Kd3 {[%clk 0:00:21.8]} 48... Rh4 {[%clk 0:00:11.4]} 49. Rf6
{[%clk 0:00:21]} 49... Rh5 {[%clk 0:00:11.7]} 50. Rg6 {[%clk 0:00:18.1]} 50...
Rh4 {[%clk 0:00:12.1]} 51. Rg7+ {[%clk 0:00:17.9]} 51... Kxe6 {[%clk 0:00:12]}
52. h7 {[%clk 0:00:18.5]} 52... Ke5 {[%clk 0:00:07.4]} 53. g6 {[%clk 0:00:18.4]}
53... Rh3+ {[%clk 0:00:08.2]} 54. Kc2 {[%clk 0:00:18.3]} 54... d4 {[%clk
0:00:05.6]} 55. Rg8 {[%clk 0:00:18.2]} 55... Rh2+ {[%clk 0:00:05.5]} 56. Kb3
{[%clk 0:00:17.9]} 56... Rh3+ {[%clk 0:00:03.4]} 57. Kb4 {[%clk 0:00:17.1]}
57... d3 {[%clk 0:00:02.9]} 58. h8=Q+ {[%clk 0:00:16.5]} 58... Rxh8 {[%clk
0:00:03.1]} 59. Rxh8 {[%clk 0:00:15.8]} 59... d2 {[%clk 0:00:03.8]} 60. Rd8
{[%clk 0:00:15.6]} 1-0